Cogmind - Beta 13 @@@ ROGUE MODE // 2024.04.14 @ 17:41:15 Player: Gargash Result: Destroyed by Y-45 Defender with Heavy Assault Rifle Performance ------------- Evolutions (2) 1000 Regions Visited (3) 600 Robots Destroyed (60) 300 Value Destroyed (1866) 1866 Prototype IDs (2) 40 Alien Tech Used (0) 0 Bonus (50) 50 TOTAL SCORE: 3856 Bonus ------- High Alert Combat Kills 50 Cogmind --------- Core Integrity 0/550 Matter 78/300 Energy 99/100 System Corruption 0% Temperature Cool (56) Movement Core (50) Location -8/Materials Parts ------- > --- POWER (1) -------- (None) > --- PROPULSION (4) --- (None) > --- UTILITY (3) ------ (None) > --- WEAPON (3) ------- (None) > --- INVENTORY (5) ---- Improved Ion Engine Improved Ion Engine Advanced Weight Redist. System ECM Suite Mini Grenade Launcher Peak State ------------ > --- POWER ------------ Light Nuclear Core > --- PROPULSION ------- Aluminum Leg Aluminum Leg Aluminum Leg Improved Aluminum Leg > --- UTILITY ---------- Improved Heat Sink Large Storage Unit Insulated Plating > --- WEAPON ----------- Beam Rifle Heavy Particle Cannon Gauss Rifle > --- INVENTORY -------- Improved Ion Engine Improved Ion Engine Light Nuclear Core Aluminum Leg Large Storage Unit Large Battery Improved Sensor Array ECM Suite Light Armor Plating EM Pulse Gun Shotgun Improved Assault Rifle Shock Bomb Launcher Mini Grenade Launcher Datajack [Rating: 26] Favorites ----------- Power Light Nuclear Core Engine Ion Engine Power Core Light Nuclear Core Propulsion Aluminum Leg Leg Aluminum Leg Utility Large Storage Unit Device Sensor Array Storage Large Storage Unit Processor Visual Processing Unit Protection Light Armor Plating Weapon Particle Gun Energy Gun Particle Gun Energy Cannon Heavy Particle Cannon Ballistic Gun Heavy Assault Rifle Launcher Mini Grenade Launcher Special Melee Weapon Improved Datajack Build | -11 -10 -9 -8 ------- Run | Yrd Mat Mat Mat Slots Evolved 4 | . . 2 2 Power . | . . . . Propulsion 2 | . . 1 1 Utility 1 | . . 1 . Weapon 1 | . . . 1 Parts Attached 91 | 6 21 35 29 Power 13 | 1 3 4 5 Engine 6 | 1 1 3 1 Core 7 | . 2 1 4 Reactor . | . . . . Propulsion 31 | 2 6 16 7 Treads . | . . . . Leg 31 | 2 6 16 7 Wheel . | . . . . Hover . | . . . . Flight . | . . . . Utility 16 | 1 4 6 5 Device 4 | . . 3 1 Storage 5 | 1 3 . 1 Processor 1 | . 1 . . Hackware . | . . . . Protection 6 | . . 3 3 Artifact . | . . . . Weapon 31 | 2 8 9 12 Energy Gun 14 | 2 3 6 3 Energy Cannon 1 | . . . 1 Ballistic Gun 12 | . 5 2 5 Ballistic Cannon . | . . . . Launcher 2 | . . . 2 Special Weapon . | . . . . Impact Weapon . | . . . . Slashing Weapon . | . . . . Piercing Weapon . | . . . . Special Melee Weapon 2 | . . 1 1 Unidentified Prototypes . | . . . . Parts Lost 26 | . . 5 21 Power 3 | . . 1 2 Propulsion 6 | . . . 6 Utility 9 | . . 4 5 Weapon 8 | . . . 8 Highest Loss Streak 20 | . . 1 20 To Critical Strikes . | . . . . Average Slot Usage (%) 97 | . 99 99 93 Engine 6 | . 8 5 3 Core 4 | . 5 4 4 Leg 31 | . 28 33 32 Device 8 | . . 14 8 Storage 11 | . 14 11 9 Processor 6 | . 13 4 . Protection 3 | . . 3 7 Energy Gun 15 | . 17 15 13 Ballistic Gun 7 | . 10 5 8 Naked Turns 2 | . . . 2 Heaviest Build 42 | 14 28 40 42 Greatest Support 49 | 20 20 39 49 Greatest Overweight (x) 10 | 1 1 1 10 Average Overweight (x) . | . . . . Largest Inventory Capacity 20 | 8 20 15 15 Average Capacity 14 | 6 13 15 14 Most Carried 15 | 6 15 15 15 Average Carried 13 | 3 11 14 14 Final Capacity 15 | 8 15 15 5 Final Carried 15 | 4 15 14 5 Class Distribution -------------------- 58% | Scavenger-Mutant 20% | Mutant 19% | Scavenger-Tank Dominant Class ---------------- Scavenger-Mutant | -10/Materials Scavenger-Mutant | -9/Materials Scavenger-Tank | -8/Materials Resources | -11 -10 -9 -8 ----------- Run | Yrd Mat Mat Mat Matter Collected 1289 | 242 383 422 242 Remotely . | . . . . Salvage Created 1990 | . 510 731 749 Parts 142 | . 39 49 54 Haulers Intercepted 1 | . . . 1 Recyclers Shooed 1 | . . . 1 Parts Field Recycled . | . . . . Retrieved Matter . | . . . . Parts Self-Destructed . | . . . . Prevented . | . . . . Kills | -11 -10 -9 -8 ------- Run | Yrd Mat Mat Mat Combat Hostiles Destroyed 51 | . 13 17 21 Guns 39 | . 12 16 11 Cannons 2 | . . . 2 AOE 9 | . 1 . 8 Classes Destroyed 7 | . 3 1 3 Hauler 1 | . . . 1 Operator 1 | . . . 1 Watcher 7 | . 2 3 2 Swarmer 16 | . 3 3 10 Grunt 24 | . 10 9 5 Sentry 10 | . . 5 5 Hunter 1 | . . . 1 Best Kill Streak 11 | . 3 3 11 Combat Bots Only 11 | . 3 3 11 Max Kills in Single Turn 3 | . 2 1 3 Gunslinging . | . . . . Exploded 3 | . 1 . 3 Melee . | . . . . Uniques/NPCs Destroyed . | . . . . Combat | -11 -10 -9 -8 -------- Run | Yrd Mat Mat Mat Hostile Shots Fired 393 | . 82 112 199 Missed 80 | . 19 24 37 Damage Taken 4379 | . 765 1168 2446 Core 862 | . 182 118 562 Absorbed by Shields . | . . . . Regen/Repaired (Parts) 284 | . 76 62 146 Core Remaining (%) 65 | 100 27 70 . Volleys Fired 158 | . 57 56 45 Largest 3 | . 2 2 3 Hottest 159 | . 80 121 159 Shots Fired 350 | . 113 109 128 Gun 328 | . 113 109 106 Cannon 14 | . . . 14 Launcher 8 | . . . 8 Special . | . . . . Kinetic 129 | . 55 32 42 Thermal 196 | . 43 77 76 Explosive 6 | . . . 6 Electromagnetic 19 | . 15 . 4 Robot Hit Streak 16 | . 11 14 16 Robot Miss Streak 4 | . 4 3 4 Penetration Max . | . . . . Secondary Targets 6 | . 2 2 2 Max Gunslinging Chain 1 | . 1 1 1 Shots Hit Robots 222 | . 72 78 72 Core Hits 110 | . 32 31 47 Critical Kills . | . . . . Critical Parts Destroyed . | . . . . Critical Strikes 10 | . . 4 6 Burn 9 | . . 4 5 Destroy 1 | . . . 1 Melee Attacks . | . . . . Impact . | . . . . Slashing . | . . . . Piercing . | . . . . Sneak Attacks . | . . . . Combat Hostiles . | . . . . Follow-up Attacks . | . . . . Damage Inflicted 3664 | . 763 1096 1805 Guns 2831 | . 728 1096 1007 Cannons 150 | . . . 150 Explosions 683 | . 35 . 648 Melee . | . . . . Ramming . | . . . . Kinetic 1018 | . 268 345 405 Thermal 1859 | . 369 751 739 Explosive 560 | . . . 560 Electromagnetic 227 | . 126 . 101 Impact . | . . . . Slashing . | . . . . Piercing . | . . . . Highest Corruption . | . . . . Average Corruption . | . . . . Corruption Purged . | . . . . Corruption Blocked . | . . . . Overload Shots . | . . . . Overflow Damage 43 | . . . 43 Projectiles . | . . . . Explosions 43 | . . . 43 Melee . | . . . . Knockbacks . | . . . . Impact . | . . . . Kinetic . | . . . . Secondary . | . . . . Self-Inflicted Damage 62 | . . . 62 Shots 2 | . . . 2 Rammed . | . . . . Targets Rammed . | . . . . Kicked . | . . . . Crushed . | . . . . Highest Temperature 658 | . 212 300 658 Average Temperature 121 | . 66 70 213 Received Heat Transfer 1956 | . 423 507 1026 Effects 32 | . . 2 30 Shutdowns 6 | . . . 6 Energy Bleed 4 | . . . 4 Interference 8 | . . 2 6 Matter Decay 4 | . . . 4 Short Circuit 2 | . . . 2 Damage (minor) 2 | . . . 2 Damage (major) 6 | . . . 6 Siege Activations . | . . . . Robots Corrupted . | . . . . Combat Hostiles . | . . . . Parts Fried . | . . . . Impact Corruptions . | . . . . Robots Melted 1 | . . 1 . Combat Hostiles 1 | . . 1 . Parts Melted 7 | . . 4 3 Heat Transferred 5191 | . 800 2245 2146 Parts Sabotaged . | . . . . Parts Stolen . | . . . . Parts Stripped . | . . . . Power Chain Reactions 2 | . 1 . 1 Alert | -11 -10 -9 -8 ------- Run | Yrd Mat Mat Mat Peak Influence 661 | . 200 160 661 Initial 63 | . . 34 63 Average 133 | . 101 74 303 Maximum Alert Level 2 | . 1 . 2 Low Security (%) 77 | 100 91 100 13 Level 1 18 | . 8 . 70 Level 2 3 | . . . 15 Level 3 . | . . . . Level 4 . | . . . . Level 5 . | . . . . High Security . | . . . . Max Security . | . . . . Squads Dispatched 10 | . 3 1 6 Investigation 1 | . . . 1 Extermination . | . . . . Reinforcement 6 | . 3 1 2 Assault 1 | . . . 1 Garrison 2 | . . . 2 Intercept . | . . . . Searches Triggered . | . . . . Construction Impeded 1 | . . . 1 Haulers Reinforced . | . . . . Active Scanning Responses . | . . . . Cargo Convoy Interrupts . | . . . . Stealth | -11 -10 -9 -8 --------- Run | Yrd Mat Mat Mat Distress Signals 3 | . 1 . 2 Communications Jammed . | . . . . Distress Signals . | . . . . Times Spotted 78 | . 22 22 34 Peak Tracking Total 9 | . 5 4 9 Tactical Retreats 4 | . 2 . 2 Traps | -11 -10 -9 -8 ------- Run | Yrd Mat Mat Mat Traps Triggered . | . . . . Indirectly . | . . . . Trap Hack Attempts . | . . . . Triggered . | . . . . Disarmed . | . . . . Reprogrammed . | . . . . Reused . | . . . . Traps Extracted . | . . . . Installed . | . . . . Triggered . | . . . . Machines | -11 -10 -9 -8 ---------- Run | Yrd Mat Mat Mat Machines Disabled 3 | . . . 3 Max in Single Turn 1 | . . . 1 Garrison Access 1 | . . . 1 Machines Repaired . | . . . . Machines Dismantled . | . . . . Machines Sabotaged . | . . . . Overloaded Fab Kills . | . . . . Hacking | -11 -10 -9 -8 --------- Run | Yrd Mat Mat Mat Machines Accessed 11 | . 3 3 5 Terminals 5 | . 1 2 2 Fabricators . | . . . . Repair Stations 3 | . 1 1 1 Recycling Units 2 | . 1 . 1 Scanalyzers 1 | . . . 1 Garrison Access . | . . . . Total Hacks 36 | . 6 8 22 Successful 25 | . 4 6 15 Failed 11 | . 2 2 7 Catastrophic . | . . . . Database Lockouts . | . . . . Manual . | . . . . Terminals 10 | . 2 5 3 Fabricators . | . . . . Repair Stations 13 | . 3 3 7 Recycling Units 3 | . 1 . 2 Scanalyzers 10 | . . . 10 Garrison Access . | . . . . Terminal Hacks 6 | . 2 4 . Prototype ID Bank 1 | . 1 . . Alert Level 1 | . . 1 . Reinforcement Status 1 | . . 1 . Recall Investigation 1 | . . 1 . Hauler Manifests 2 | . 1 1 . Fabricator Hacks . | . . . . Repair Station Hacks 10 | . 2 2 6 Scan Component 5 | . 1 1 3 Repair 5 | . 1 1 3 Recycling Unit Hacks . | . . . . Scanalyzer 9 | . . . 9 Insert Component 5 | . . . 5 Analyze 4 | . . . 4 Garrison Access Hacks . | . . . . Unauthorized Hacks . | . . . . Terminals . | . . . . Fabricators . | . . . . Repair Stations . | . . . . Recycling Units . | . . . . Scanalyzers . | . . . . Garrison Access . | . . . . Data Cores Recovered 1 | . . . 1 Used . | . . . . Hacking Detections 10 | . 3 3 4 Full Trace Events 2 | . . . 2 Feedback Events . | . . . . Feedback Blocked . | . . . . Robot Schematics Acquired . | . . . . Robots Built . | . . . . Authchips . | . . . . Time . | . . . . Total Robot Build Rating . | . . . . Part Schematics Acquired 3 | . . . 3 Parts Built . | . . . . Authchips . | . . . . Time . | . . . . Total Part Build Rating . | . . . . Parts Repaired 5 | . 1 1 3 Time 142 | . 26 32 84 Parts Recycled . | . . . . Recycled Matter . | . . . . Retrieved Matter . | . . . . Retrieved Components . | . . . . Parts Scanalyzed 4 | . . . 4 Part Schematics Acquired 3 | . . . 3 Parts Damaged . | . . . . Bothacking | -11 -10 -9 -8 ------------ Run | Yrd Mat Mat Mat Used RIF Installer . | . . . . Robots Hacked . | . . . . Non-combat . | . . . . Combat . | . . . . Robot Hacks Applied . | . . . . Relay Couplers Released 2 | . . . 2 Machine Destruction 2 | . . . 2 Fabnet Peak Effective % . | . . . . Robots Rewired . | . . . . Allies Hacked . | . . . . Hacks Repelled . | . . . . Allies | -11 -10 -9 -8 -------- Run | Yrd Mat Mat Mat Total Allies . | . . . . Largest Group . | . . . . Highest-Rated Group . | . . . . Highest-Rated Ally . | . . . . Total Orders . | . . . . Ally Attacks . | . . . . Total Damage . | . . . . Kills . | . . . . Allies Corrupted . | . . . . Allies Melted . | . . . . Intel | -11 -10 -9 -8 ------- Run | Yrd Mat Mat Mat Robot Analysis Total . | . . . . Derelict Logs Recovered . | . . . . Drone Launches . | . . . . Drone Recoveries . | . . . . Exploration | -11 -10 -9 -8 ------------- Run | Yrd Mat Mat Mat Turns Passed 3211 | 65 956 1458 732 Spaces Moved 1369 | 44 398 584 343 Core 12 | 5 . . 7 Treads . | . . . . Legs 1357 | 39 398 584 336 Wheels . | . . . . Hover . | . . . . Flight . | . . . . Fastest Speed 50 | 50 120 120 50 Average Speed 157 | 113 172 168 125 Slowest Speed 550 | 120 190 190 550 Overloaded Moves . | . . . . Propulsion Burnouts . | . . . . Robots Hopped . | . . . . Cave-ins Triggered . | . . . . Exploration Rate (%) 27 | 4 43 38 24 Regions Visited 3 Branch Regions . Pre-discovered Areas . | . . . . Known Exits Taken . | . . . . Unknown Exits Taken 3 | 1 1 1 . Scrap Searched . | . . . . Spaces Dug . | . . . . Terrain Destroyed 46 | . 3 . 43 Melee . | . . . . Projectile 7 | . . . 7 AOE 39 | . 3 . 36 Terrain Rammed . | . . . . Walls Destroyed . | . . . . Machines Disabled . | . . . . Actions | -11 -10 -9 -8 --------- Run | Yrd Mat Mat Mat Total 2126 | 59 569 951 547 Wait 391 | . 53 234 104 Move 1366 | 43 397 583 343 Hop . | . . . . Pick Up 65 | 10 24 19 12 Fast Attach 7 | . 1 2 4 Attach 28 | 6 1 8 13 Detach . | . . . . Swap 56 | . 19 25 12 Drop 55 | . 17 24 14 Fire 158 | . 57 56 45 Melee . | . . . . Ram . | . . . . Kick . | . . . . Crush . | . . . . Escape Stasis . | . . . . Rewire . | . . . . Trap . | . . . . Miscellaneous . | . . . . Route ------- -11/Scrapyard -10/Materials (discovered 2 exits: *Mat / [*Min]) -9/Materials -8/Materials History --------- Turn | Location | Event 29 | -11/Scrapyard | Discovered new exit (range 15) 66 | -11/Scrapyard | Entered Materials 211 | -10/Materials | Discovered new exit (range 15) 317 | -10/Materials | Build established: Mutant 656 | -10/Materials | Core integrity fell below 50% 734 | -10/Materials | Build established: Scavenger-Mutant 945 | -10/Materials | Repaired Lgt. Assault Rifle 1002 | -10/Materials | Discovered new exit (range 4) 1022 | -10/Materials | Entered another Materials area 1022 | -9/Materials | Evolved 2 slots: Propulsion x1, Utility x1 1470 | -9/Materials | Repaired Hvy. Assault Rifle 2463 | -9/Materials | Discovered new exit (range 10) 2480 | -9/Materials | Entered another Materials area 2480 | -8/Materials | Evolved 2 slots: Propulsion x1, Weapon x1 2563 | -8/Materials | Garrison activated, responded to threat 2703 | -8/Materials | Repaired Imp. Aluminum Leg 2730 | -8/Materials | Repaired Lgt. Armor Plating 2758 | -8/Materials | Repaired Aluminum Leg 3028 | -8/Materials | Build established: Scavenger-Tank 3117 | -8/Materials | Garrison activated, responded to threat 3176 | -8/Materials | Core integrity fell below 50% 3196 | -8/Materials | Destroyed 11 combat bots 3198 | -8/Materials | Core integrity fell below 20% 3212 | -8/Materials | Destroyed by Y-45 Defender with Heavy Assault Rifle Last Messages --------------- U-05 Engineer lays Concrete. Imp. Datajack destroyed. Lgt. Nuclear Core destroyed. U-05 Engineer lays Concrete. R-06 Scavenger collects Lgt. Treads. U-05 Engineer lays Concrete. Lgt. Armor Plating destroyed. U-05 Engineer lays Concrete. Lrg. Storage Unit destroyed. U-05 Engineer lays Concrete. Lrg. Battery destroyed. R-06 Scavenger collects Particle Gun. U-05 Engineer lays Concrete. C-30 ARC bursts open, deploying its payload. G-50 Soldier unfolds itself. G-47 Trooper unfolds itself. B-36 Bruiser unfolds itself. G-47 Trooper unfolds itself. I-25 Savior unfolds itself. U-05 Engineer lays Concrete. Map ----- +----------------------------------------------------+ | ????????????????????????????????# #?????????????? | | ????????????????????????????????# #?????????????? | | ??????????????????????????????### ##????????????? | | ??????????????????????????????# ########?????? | | ??????????????????????????????# #?????? | | ??????????????????????????????# #?????? | | ??????????????????????????????# #?????? | | ??????????????????????????????# ########?????? | | ???????????????????##?????????## ##########????? | | ???????????????????# ??????????# # ! #????? | | ???????????????????# ? ??????# # " #????? | | ???????????? ####### ##;####### + T / #????? | | ??????????? # " #????? | | ??????????? # #????? | | ??????????? " # """"" #????? | | ???????????????######### [ G" #### """"" =#????? | | ??????????????????????##gi% " ;#?# """"" #????? | | ??????????????????????## gb! #??# #????? | | ??????????????????????##g #??##########????? | | ?????????????????????? # #????????????????? | | ??????????????????????##u= ! #????????????????? | | ?????????????????????## #????????????????? | | ????????????????????## u ##???????????????? | | ??????????# ??????# r % ;#???????????????? | | ?????? ##### # gg %% #????????????????? | | ?????? %[* Y ! @ = #????????????????? | | ?????? * [ = #????????????????? | | ????????#"; ## #????????????????? | | ????????#####+ ### #????????????????? | | ??????????????????# u #????????????????? | | ??????????????????# " #????????????????? | | ??????????????????# + ???????????????? | | ??????????????????##### % # ???????????????? | | ??????????????????????## #?#??????????????? | | ??????????????????????# #???????????????? | | ??????????????????????## ???????????????? | | ???????????????????????# ??????????????? | | ???????????????????????# #???????????????? | | ????????????????????????######+##????????????????? | | ?????????????????????????????????????????????????? | | ?????????????????????????????????????????????????? | | ?????????????????????????????????????????????????? | | ?????????????????????????????????????????????????? | | ?????????????????????????????????????????????????? | | ?????????????????????????????????????????????????? | | ?????????????????????????????????????????????????? | | ?????????????????????????????????????????????????? | | ?????????????????????????????????????????????????? | | ?????????????????????????????????????????????????? | | ?????????????????????????????????????????????????? | +----------------------------------------------------+ Best States ------------- Heat Dissipation 45 Energy Generation 14 Energy Capacity 360 Matter Stores 300 Matter Capacity 300 Sight Range 18 Robot Scan Range 14 Terrain Scan Density 10 Armor Coverage 225 Resistance: EM 15 Evasion (%) 55 Item Schematics ----------------- Lrg. Storage Unit | -8/Materials | Scanalyzed Aluminum Leg | -8/Materials | Scanalyzed Lgt. Armor Plating | -8/Materials | Scanalyzed Robot Schematics ------------------ None Fabricated ------------ Nothing Alien Tech Used ----------------- None Achievements -------------- None Challenges ------------ None Game ------ Seed LauncherSiegeProtomatter Manual? 0 Play Time 00:56:39 Cumulative 13.3 hours Start 2024.04.14 @ 16:46:12 End 2024.04.14 @ 17:41:15 Sessions 1 Manual Loads 0 Difficulty Rogue Special Mode None Game No. 9 Rogue 9 Adventurer 0 Explorer 0 Win Type - Total 0 Types 0/0/0/0/0/0/0/0/0 Lore% 16 Gallery% 18 Achievement% 16 Wizard Run 0 Options --------- Layout 1 ASCII 0 Keyboard 0 Movement Mouse Keybinds 0 Fullscreen 1 Font 24/Smallcaps Map View 50x35 Zoom Use 0% Tactical HUD 0 Map Filters NONE Filters NONE Steam 1 RUN: 79655b46-409f-4299-ab69-aa1a1c45002c